bitfinex/quotes_SOLUSD_20251125
["timestamp","ask_amount","ask_price","bid_price","bid_amount"]
[1764034072977,0.67,138.77,138.74,72.90770635]
[1764034079976,0.67,138.77,138.74,65.7]
[1764034080586,0.67,138.77,138.74,72.9075926]
[1764034080788,0.67,138.77,138.74,65.7]
[1764034082484,3.46797751,138.77,138.74,65.7]
[1764034082784,0.72,138.76,138.74,65.7]
[1764034083492,0.72,138.79,138.75,8.80994492]
[1764034083679,3.51797751,138.79,138.75,71.30994492]
[1764034083990,2.79797751,138.78,138.75,62.5]
[1764034084194,3.51797751,138.78,138.75,62.5]
[1764034084377,0.72,138.77,138.75,62.5]
[1764034085577,2.79797751,138.76,138.72,62.5]
[1764034085777,2.79797751,138.73,138.7,0.2]
[1764034086098,2.79797751,138.71,138.7,0.2]
[1764034086393,2.79797751,138.71,138.69,0.2]
[1764034086590,3.51797751,138.7,138.69,0.2]
[1764034087895,27.03664684,138.7,138.69,0.2]
[1764034090608,28.61683775,138.7,138.69,0.2]
[1764034091191,21.40703242,138.7,138.69,0.2]
[1764034091384,28.61683775,138.7,138.69,0.2]
[1764034093775,51.0195195,138.7,138.67,0.2]
[1764034094086,8.75633684,138.68,138.67,0.2]
[1764034094285,8.75633684,138.68,138.63,0.2]
[1764034094486,23.52178956,138.64,138.63,0.2]
[1764034094699,31.09995798,138.64,138.63,0.2]
[1764034094892,31.81995798,138.64,138.63,0.2]
[1764034097082,24.60703242,138.64,138.63,0.2]
[1764034098003,31.81995798,138.64,138.63,0.2]
[1764034099205,31.81995798,138.64,138.62,20.36210291]
[1764034099411,16.308864,138.61,138.59,0.2]
[1764034099711,42.48877963,138.61,138.59,0.2]
[1764034099909,9.47633684,138.6,138.59,0.2]
[1764034101112,16.69134405,138.6,138.59,0.2]
[1764034103399,12.31317563,138.6,138.59,0.2]
[1764034103585,16.69134405,138.6,138.59,0.2]
[1764034104896,7.93500721,138.6,138.59,0.2]
[1764034105094,16.308864,138.58,138.57,0.2]
[1764034105308,20.68703242,138.58,138.57,0.2]
[1764034105491,21.40703242,138.58,138.57,0.2]
[1764034107096,28.62308091,138.58,138.57,0.2]
[1764034110218,31.82308091,138.58,138.57,0.2]
[1764034112007,49.86320213,138.58,138.55,0.2]
[1764034112206,27.90412248,138.56,138.55,0.2]
[1764034112417,31.82412248,138.56,138.55,0.2]
[1764034113504,15.51525848,138.56,138.55,0.2]
[1764034117026,16.308864,138.53,138.49,0.2]
[1764034117317,20.68703242,138.5,138.49,0.2]
[1764034118321,4.37816842,138.53,138.49,0.88]
[1764034118322,17.028864,138.53,138.49,0.88]
[1764034118518,16.308864,138.5,138.49,0.88]
[1764034118815,16.308864,138.5,138.49,0.2]
[1764034119192,16.308864,138.5,138.49,0.88]
[1764034122623,20.68703242,138.5,138.49,0.88]
[1764034123621,20.68703242,138.5,138.49,0.2]
[1764034124027,20.68703242,138.5,138.49,0.88]
[1764034127026,4.37816842,138.5,138.49,0.88]
[1764034127531,4.37816842,138.5,138.49,0.2]
[1764034127532,11.59838502,138.5,138.49,0.2]
[1764034128033,27.4490806,138.5,138.49,0.2]
[1764034128205,31.82724902,138.5,138.49,0.2]
[1764034128606,15.51838502,138.5,138.49,0.2]
[1764034129517,31.82724902,138.5,138.49,0.2]
[1764034129721,15.51838502,138.5,138.49,0.2]
[1764034131421,11.1402166,138.5,138.49,0.2]
[1764034131733,15.51838502,138.5,138.49,0.2]
[1764034132927,31.82724902,138.5,138.49,0.2]
[1764034133108,15.51838502,138.5,138.49,0.2]
[1764034134344,31.82724902,138.5,138.49,0.2]
[1764034134631,15.51838502,138.5,138.49,0.2]
[1764034135612,16.308864,138.49,138.46,0.2]
[1764034135833,4.37816842,138.47,138.46,0.2]
[1764034136031,11.59994931,138.47,138.46,0.2]
[1764034136248,12.26994931,138.47,138.46,0.2]
[1764034140537,11.59994931,138.47,138.46,0.2]
[1764034141917,7.57816842,138.47,138.46,0.89]
[1764034142150,16.308864,138.47,138.46,0.89]
[1764034142442,20.68703242,138.47,138.46,0.89]
[1764034143221,16.308864,138.47,138.46,0.89]
[1764034143426,0.67,138.57,138.47,8.80994492]
[1764034143736,4.37816842,138.54,138.49,4.37816842]
[1764034143934,16.308864,138.53,138.49,4.37816842]
[1764034144236,16.308864,138.53,138.5,0.69]
[1764034145432,16.308864,138.52,138.5,0.69]
[1764034148650,16.308864,138.53,138.5,7.91013433]
[1764034149026,16.308864,138.53,138.51,0.69]
[1764034149926,16.308864,138.52,138.51,0.69]
[1764034150261,16.308864,138.51,138.46,0.89]
[1764034150435,4.37816842,138.49,138.46,9.69994492]
[1764034150645,2.80954139,138.49,138.47,0.69]
[1764034150947,16.308864,138.48,138.47,0.69]
[1764034153157,19.11840539,138.49,138.47,0.69]
[1764034153338,16.308864,138.49,138.47,0.69]
[1764034156134,3.2,138.48,138.46,7.42223505]
[1764034156335,2.80954139,138.47,138.46,0.2]
[1764034161054,19.11840539,138.47,138.46,0.2]
[1764034161257,16.308864,138.47,138.46,9.69994492]
[1764034161933,16.308864,138.48,138.46,9.69994492]
[1764034162141,16.308864,138.48,138.47,0.69]
[1764034162541,16.308864,138.47,138.46,0.2]
[1764034162748,6.67954139,138.47,138.46,0.2]
[1764034162942,30.21018628,138.47,138.46,0.2]
[1764034163152,11.09178089,138.47,138.46,0.2]
[1764034163348,13.90132228,138.47,138.46,0.2]
[1764034163743,16.71086367,138.47,138.46,0.2]
[1764034165033,33.01972767,138.47,138.46,0.2]
[1764034165240,13.90132228,138.47,138.46,0.2]
[1764034165740,25.13948784,138.47,138.46,0.2]
[1764034166553,6.67954139,138.47,138.46,0.2]
[1764034167155,16.308864,138.45,138.44,0.2]
[1764034167342,22.31840539,138.45,138.41,0.2]
[1764034167549,2.80954139,138.42,138.41,0.2]
[1764034167956,3.49954139,138.42,138.41,0.2]
[1764034168535,0.69,138.42,138.41,0.2]
[1764034168741,2.80954139,138.42,138.41,0.2]
[1764034172148,2.80954139,138.42,138.41,0.87]
[1764034172353,2.80954139,138.42,138.41,0.2]
[1764034172860,3.49954139,138.42,138.41,0.2]
[1764034173264,19.80840539,138.42,138.41,0.2]
[1764034173952,3.49954139,138.42,138.41,0.2]
[1764034174154,19.80840539,138.42,138.41,0.2]
[1764034175066,19.11840539,138.42,138.41,0.2]
[1764034177046,2.80954139,138.42,138.41,0.2]
[1764034177963,2.80954139,138.43,138.41,8.09484856]
[1764034178354,2.80954139,138.43,138.42,0.67]
[1764034178740,2.80954139,138.43,138.42,7.89438953]
[1764034178944,2.80954139,138.43,138.42,7.22438953]
[1764034179147,2.80954139,138.43,138.42,3.22]
[1764034179670,19.11840539,138.43,138.42,3.89]
[1764034180744,2.80954139,138.43,138.42,11.11438953]
[1764034180958,0.69,138.47,138.43,8.80994492]
[1764034180959,2.80954139,138.47,138.43,8.80994492]
[1764034181156,2.80954139,138.47,138.43,9.47994492]
[1764034181358,2.80954139,138.47,138.44,0.67]
[1764034182670,2.80954139,138.47,138.44,7.89290977]
[1764034183171,2.80954139,138.46,138.45,0.67]
[1764034183542,16.308864,138.5,138.45,0.67]
[1764034183765,2.80954139,138.47,138.46,3.22]
[1764034188172,2.80954139,138.47,138.46,11.11230247]
[1764034188870,0.69,138.52,138.46,19.92224739]
[1764034189067,2.80954139,138.49,138.47,0.67]
[1764034189454,2.80954139,138.51,138.47,0.67]
[1764034189875,16.308864,138.5,138.47,0.67]
[1764034190058,2.80954139,138.49,138.47,0.67]
[1764034190257,2.80954139,138.49,138.48,7.22125938]
[1764034190775,2.80954139,138.49,138.48,7.89125938]
[1764034192083,2.80954139,138.49,138.46,8.80994492]
[1764034192382,2.80954139,138.49,138.48,3.22]
[1764034192880,2.80954139,138.49,138.48,3.92]
[1764034196476,2.80954139,138.49,138.46,7.22210563]
[1764034196477,3.46954139,138.49,138.46,7.22210563]
[1764034196783,0.66,138.49,138.48,3.2]
[1764034197771,3.46954139,138.49,138.48,3.2]
[1764034198278,3.46954139,138.49,138.46,7.92210563]
[1764034198468,3.46954139,138.49,138.48,3.2]
[1764034200466,10.69038251,138.49,138.42,7.22402564]
[1764034200678,2.80954139,138.44,138.43,3.2]
[1764034200999,2.80954139,138.44,138.41,0.2]
[1764034201182,0.66,138.44,138.42,3.2]
[1764034201576,28.20702956,138.46,138.42,3.87]
[1764034201888,16.968864,138.46,138.42,3.87]
[1764034202107,0.66,138.45,138.42,3.87]
[1764034202268,7.22402564,138.49,138.46,16.308864]
[1764034202571,2.80954139,138.55,138.47,14.81948631]
[1764034202769,3.46954139,138.56,138.47,37.73540828]
[1764034202987,2.80954139,138.58,138.5,8.80994492]
[1764034203185,2.80954139,138.58,138.51,3.22]
[1764034203391,2.80954139,138.56,138.51,3.71]
[1764034203592,2.80954139,138.56,138.53,8.80994492]
[1764034203792,2.80954139,138.56,138.54,3.22]
[1764034204087,2.80954139,138.56,138.54,10.43777821]
[1764034204796,23.65076087,138.57,138.54,10.43777821]
[1764034206171,23.65076087,138.57,138.54,3.22]
[1764034206401,6.68189687,138.55,138.53,3.22]
[1764034206693,16.308864,138.53,138.48,7.22125938]
[1764034206881,6.68189687,138.5,138.48,10.44125938]
[1764034207066,6.68189687,138.49,138.43,7.22386765]
[1764034207266,6.68189687,138.49,138.44,3.71]
[1764034207767,6.68189687,138.49,138.45,0.49]
[1764034208071,6.68189687,138.49,138.46,7.22230247]
[1764034208265,6.68189687,138.49,138.47,3.22]
[1764034208489,7.34189687,138.49,138.47,3.22]
[1764034208686,6.68189687,138.49,138.47,3.22]
[1764034209081,6.68189687,138.48,138.47,3.22]
[1764034209768,6.68189687,138.48,138.46,7.22230247]
[1764034209969,6.68189687,138.47,138.45,16.03260011]
[1764034210169,6.68189687,138.47,138.46,3.22]
[1764034210793,7.34189687,138.47,138.44,7.22322585]
[1764034210988,6.68189687,138.46,138.45,3.22]
[1764034212471,7.34189687,138.48,138.45,3.22]
[1764034212783,11.65065265,138.48,138.45,10.44270697]
[1764034212985,11.65065265,138.48,138.45,7.22270697]
[1764034213195,12.31065265,138.48,138.46,3.22]
[1764034215096,12.31065265,138.48,138.46,10.4422925]
[1764034215401,11.65065265,138.48,138.46,10.4422925]
[1764034215702,12.31065265,138.48,138.46,3.22]
[1764034215899,11.65065265,138.47,138.46,3.22]
[1764034216201,12.31065265,138.48,138.46,10.44222519]
[1764034216397,16.308864,138.49,138.46,10.44222519]
[1764034216700,28.61951665,138.49,138.46,10.44222519]
[1764034217998,28.61951665,138.49,138.46,7.22222519]
[1764034218194,12.31065265,138.49,138.47,3.22]
[1764034218682,11.65065265,138.49,138.47,10.44172685]
[1764034219275,0.66,138.5,138.47,10.44172685]
[1764034219481,12.31065265,138.5,138.47,10.44172685]
[1764034219897,0.66,138.49,138.47,10.44172685]
[1764034220703,12.31065265,138.49,138.47,10.44172685]
[1764034221804,16.308864,138.53,138.48,9.29994492]
[1764034222005,11.65065265,138.52,138.48,9.29994492]
[1764034222187,25.62419816,138.52,138.48,9.29994492]
[1764034222384,11.65065265,138.51,138.48,8.80994492]
[1764034222582,11.65065265,138.51,138.49,3.22]
[1764034222583,12.31065265,138.51,138.49,3.22]
[1764034222778,12.36065265,138.5,138.49,3.22]
[1764034223479,12.36065265,138.5,138.47,7.22172685]
[1764034223686,11.65065265,138.48,138.46,3.22]
[1764034224000,11.65065265,138.48,138.46,10.44214824]
[1764034224583,12.36065265,138.48,138.46,3.22]
[1764034224984,0.71,138.48,138.46,3.22]
[1764034225714,12.36065265,138.48,138.46,3.22]
[1764034226395,12.36065265,138.48,138.46,10.442195]
[1764034226596,5.10045561,138.48,138.46,10.442195]
[1764034227296,0.71,138.48,138.46,10.442195]
[1764034227491,4.39045561,138.49,138.46,10.44228982]
[1764034227697,5.10045561,138.49,138.46,10.44228982]
[1764034228208,4.39045561,138.48,138.46,10.44228982]
[1764034228418,4.39045561,138.47,138.46,62.5]
[1764034228592,5.10045561,138.47,138.46,62.5]
[1764034229209,5.10045561,138.47,138.46,65.72]
[1764034229704,4.39045561,138.48,138.46,65.72]
[1764034230012,4.39045561,138.47,138.46,62.5]
[1764034230189,5.10045561,138.47,138.46,62.5]
[1764034230803,0.71,138.47,138.46,62.5]
[1764034232419,0.71,138.49,138.45,72.94270872]
[1764034232619,4.39045561,138.48,138.45,72.94270872]
[1764034233115,5.10045561,138.48,138.45,72.94270872]
[1764034233597,0.71,138.48,138.45,72.94270872]
[1764034233801,5.10045561,138.48,138.45,72.94270872]
[1764034234618,0.71,138.48,138.45,72.94270872]
[1764034235216,23.52876651,138.51,138.46,0.49]
[1764034235217,4.39045561,138.51,138.46,0.49]
[1764034235416,14.68354551,138.52,138.47,8.80994492]
[1764034235617,19.07400112,138.52,138.48,3.22]
[1764034235797,4.39045561,138.51,138.48,10.93121172]
[1764034235996,4.39045561,138.51,138.49,3.22]
[1764034236205,19.07400112,138.52,138.49,3.22]
[1764034236805,35.38286512,138.52,138.49,3.22]
[1764034237023,34.67286512,138.52,138.49,3.22]
[1764034237322,0.71,138.51,138.5,3.22]
[1764034237736,0.71,138.51,138.49,3.22]
[1764034238407,30.28240951,138.52,138.49,10.93063074]
[1764034238615,30.99240951,138.52,138.49,10.44063074]
[1764034239396,35.38286512,138.52,138.49,10.44063074]
[1764034240090,35.38286512,138.52,138.51,8.80994492]
[1764034240091,13.97354551,138.52,138.51,8.80994492]
[1764034240300,13.97354551,138.52,138.51,13.20040053]
[1764034240519,0.71,138.6,138.51,13.69040053]
[1764034240721,4.59045561,138.61,138.54,4.39045561]
[1764034240905,21.60931961,138.61,138.56,8.80994492]
[1764034241230,5.30045561,138.61,138.56,8.80994492]
[1764034241399,5.30045561,138.61,138.56,9.29994492]
[1764034241601,0.71,138.6,138.56,9.29994492]
[1764034241803,0.2,138.61,138.58,8.80994492]
[1764034242129,0.71,138.6,138.58,12.02994492]
[1764034242511,11.62996931,138.59,138.55,25.26059221]
[1764034242720,11.62996931,138.59,138.57,3.22]
[1764034242912,12.33996931,138.59,138.57,3.22]
[1764034243110,12.33996931,138.6,138.57,3.22]
[1764034243308,11.62996931,138.59,138.55,7.70713339]
[1764034243521,12.33996931,138.59,138.56,3.22]
[1764034244419,12.33996931,138.59,138.56,10.4370174]
[1764034244630,11.62996931,138.57,138.5,0.49]
[1764034244949,11.62996931,138.54,138.51,12.02994492]
[1764034245304,11.62996931,138.54,138.51,12.51994492]
[1764034245831,11.62996931,138.54,138.51,19.73964024]
[1764034246124,11.62996931,138.52,138.5,7.22011636]
[1764034246331,11.62996931,138.52,138.51,3.22]
[1764034247435,12.33996931,138.52,138.46,0.49]
[1764034247621,11.62996931,138.49,138.47,8.80994492]
[1764034247820,11.62996931,138.5,138.47,10.44164742]
[1764034248020,12.33996931,138.5,138.47,10.44164742]
[1764034248204,11.62996931,138.51,138.47,10.44164742]
[1764034248406,12.33996931,138.51,138.47,10.44164742]
[1764034248624,12.33996931,138.51,138.47,10.93164742]
[1764034248814,11.62996931,138.52,138.48,9.29994492]
[1764034249219,11.62996931,138.52,138.48,8.80994492]
[1764034249420,12.33996931,138.51,138.48,8.80994492]
[1764034249716,12.33996931,138.51,138.48,7.22086531]
[1764034249920,11.62996931,138.51,138.48,16.03081023]
[1764034250431,12.33996931,138.51,138.48,16.03081023]
[1764034250823,12.33996931,138.52,138.48,16.03081023]
[1764034251025,12.33996931,138.52,138.48,16.52081023]
[1764034251823,12.33996931,138.52,138.48,16.03081023]
[1764034252020,12.33996931,138.51,138.48,8.80994492]
[1764034252624,11.62996931,138.5,138.48,8.80994492]
[1764034252829,11.62996931,138.5,138.47,10.44134566]
[1764034252830,12.34996931,138.5,138.47,10.44134566]
[1764034253142,0.72,138.49,138.47,72.94134566]
[1764034253525,12.34996931,138.5,138.47,72.94134566]
[1764034253741,16.308864,138.54,138.47,62.5]
[1764034253742,16.308864,138.51,138.47,62.5]
[1764034253921,0.72,138.49,138.45,7.22264857]
[1764034254122,0.72,138.49,138.45,10.44264857]
[1764034254335,27.93883331,138.5,138.46,0.49]
[1764034254520,28.65883331,138.5,138.46,0.49]
[1764034256039,28.65883331,138.5,138.45,28.49970888]
[1764034256040,27.93883331,138.5,138.45,28.49970888]
[1764034256216,0.7,138.49,138.45,28.49970888]
[1764034256415,12.32996931,138.49,138.45,28.49970888]
[1764034259152,12.32996931,138.49,138.45,90.99970888]
[1764034259861,12.32996931,138.49,138.45,91.48970888]
[1764034259862,0.7,138.49,138.45,91.48970888]
[1764034260558,12.32996931,138.49,138.45,91.48970888]
[1764034261347,0.7,138.48,138.45,90.99970888]
[1764034261875,12.32996931,138.48,138.45,65.72]
[1764034262154,11.62996931,138.46,138.45,3.22]
[1764034262341,12.32996931,138.46,138.45,3.22]
[1764034262941,0.7,138.46,138.45,3.22]
[1764034263254,0.7,138.46,138.43,3.22]
[1764034263453,0.7,138.46,138.43,7.22370431]
[1764034263655,0.7,138.46,138.44,3.22]
[1764034266152,0.7,138.46,138.44,10.44324557]
[1764034266779,5.09114012,138.49,138.45,0.49]
[1764034267065,5.09114012,138.49,138.44,10.44324557]
[1764034267252,0.7,138.51,138.45,9.29994492]
[1764034267453,5.09114012,138.5,138.45,9.29994492]
[1764034267974,5.09114012,138.52,138.47,8.80994492]
[1764034268186,5.09114012,138.52,138.48,10.42125938]
[1764034268366,0.7,138.51,138.48,10.42125938]
[1764034268545,5.09114012,138.56,138.49,13.69108504]
[1764034268884,0.7,138.56,138.5,4.39114012]
[1764034269062,17.008864,138.56,138.52,8.80994492]
[1764034269255,0.7,138.56,138.52,8.80994492]
[1764034269668,10.43515941,138.6,138.52,9.29994492]
[1764034269864,0.7,138.59,138.54,8.80994492]
[1764034270170,0.7,138.59,138.56,7.21709006]
[1764034270369,5.09114012,138.59,138.56,7.21709006]
[1764034270685,0.7,138.58,138.56,7.21709006]
[1764034271187,11.62944356,138.57,138.5,16.798864]
[1764034271356,11.62944356,138.55,138.51,19.24964024]
[1764034271742,11.62944356,138.56,138.52,0.49]
[1764034271968,12.32944356,138.56,138.52,0.49]
[1764034272365,11.62944356,138.56,138.52,7.21882734]
[1764034272566,0.7,138.55,138.52,7.21882734]
[1764034273256,7.38236846,138.56,138.52,7.21882734]
[1764034273774,7.38236846,138.56,138.52,69.71882734]
[1764034275673,6.68236846,138.56,138.52,69.71882734]
[1764034275878,0.7,138.55,138.52,69.71882734]
[1764034278566,7.38236846,138.56,138.53,3.2]
[1764034279882,0.7,138.55,138.53,3.2]
[1764034280303,7.38236846,138.56,138.53,10.4186387]
[1764034280581,0.7,138.56,138.53,10.4186387]
[1764034282986,0.7,138.56,138.53,72.9186387]
[1764034283282,0.71,138.58,138.54,8.80994492]
[1764034283487,6.68236846,138.58,138.54,8.80994492]
[1764034283667,0.71,138.57,138.54,16.02773119]
[1764034284061,0.71,138.57,138.54,8.80994492]
[1764034284261,7.39236846,138.57,138.54,8.80994492]
[1764034284690,0.71,138.56,138.55,3.2]
[1764034285060,7.39236846,138.58,138.54,8.80994492]
[1764034285285,7.39236846,138.58,138.55,3.2]
[1764034285688,0.71,138.57,138.55,3.2]
[1764034285873,0.71,138.57,138.55,10.41758253]
[1764034286395,6.68236846,138.58,138.55,10.41758253]
[1764034286591,7.39236846,138.58,138.55,10.41758253]
[1764034286783,0.71,138.58,138.55,10.41758253]
[1764034287878,6.68236846,138.57,138.55,3.2]
[1764034288085,6.68236846,138.56,138.53,69.71847481]
[1764034288284,6.68236846,138.55,138.54,3.2]
[1764034288597,6.68236846,138.56,138.54,3.2]
[1764034288781,7.39236846,138.56,138.54,3.2]
[1764034288983,7.39236846,138.55,138.54,3.2]
[1764034289277,0.71,138.55,138.54,3.2]
[1764034289481,0.71,138.55,138.51,7.21958668]
[1764034289482,7.39236846,138.55,138.53,3.2]
[1764034290698,6.68236846,138.55,138.53,3.2]
[1764034290891,0.71,138.54,138.53,3.2]
[1764034291485,6.68236846,138.55,138.53,3.2]
[1764034291686,7.39236846,138.55,138.53,3.2]
[1764034292477,0.71,138.55,138.53,3.2]
[1764034292683,3.51681773,138.56,138.53,10.41838437]
[1764034293170,0.71,138.55,138.53,10.41838437]
[1764034294402,0.71,138.55,138.53,3.2]
[1764034294699,0.71,138.55,138.53,65.7]
[1764034295585,2.80681773,138.56,138.53,72.91856288]
[1764034295791,3.51681773,138.56,138.53,72.91856288]
[1764034295997,3.51681773,138.56,138.53,65.7]
[1764034296199,0.71,138.55,138.53,65.7]
[1764034296401,3.51681773,138.56,138.53,65.7]
[1764034296578,0.71,138.55,138.53,65.7]
[1764034298920,0.71,138.55,138.53,72.91863341]
[1764034299918,0.71,138.56,138.53,72.91863341]
[1764034300099,0.71,138.55,138.53,72.91863341]
[1764034300420,0.71,138.55,138.53,65.7]
[1764034300719,3.51681773,138.58,138.54,0.49]
[1764034300890,2.80681773,138.57,138.53,72.9184247]
[1764034301092,0.71,138.57,138.53,72.9184247]
[1764034301394,0.71,138.56,138.53,72.9184247]
[1764034305001,0.71,138.56,138.53,73.4084247]
[1764034305926,0.71,138.56,138.53,72.9184247]
[1764034307005,0.71,138.56,138.53,69.7184247]
[1764034307404,0.71,138.56,138.54,3.2]
[1764034307818,0.71,138.56,138.53,69.7184247]
[1764034308111,2.80681773,138.55,138.54,3.2]
[1764034308493,0.71,138.55,138.54,3.2]
[1764034308810,0.71,138.59,138.55,8.80994492]
[1764034309013,0.71,138.59,138.56,3.2]
[1764034309515,16.508864,138.61,138.56,3.2]
[1764034309719,0.91,138.61,138.57,0.49]
[1764034310507,3.71681773,138.61,138.57,7.70631478]
[1764034310707,0.71,138.6,138.57,7.70631478]
[1764034312828,0.71,138.6,138.57,0.49]
[1764034313119,0.71,138.6,138.57,8.80994492]
[1764034313304,0.86,138.61,138.57,9.29994492]
[1764034313506,3.46681773,138.6,138.56,10.41690694]
[1764034313999,0.66,138.59,138.56,10.90690694]
[1764034314201,3.46681773,138.6,138.56,10.90690694]
[1764034314916,0.66,138.6,138.56,10.90690694]
[1764034315305,0.2,138.61,138.6,8.80994492]
[1764034315500,0.2,138.61,138.6,12.00994492]
[1764034315827,0.2,138.61,138.6,12.49994492]
[1764034316029,0.2,138.61,138.6,8.80994492]
[1764034316197,0.2,138.61,138.6,3.2]
[1764034317015,0.9,138.61,138.6,3.2]
[1764034317217,0.9,138.61,138.59,3.2]
[1764034317413,0.2,138.61,138.59,3.2]
[1764034318613,0.2,138.61,138.59,10.9053553]
[1764034318811,0.2,138.61,138.59,10.4153553]
[1764034320802,3.50681773,138.6,138.57,3.2]
[1764034321210,0.7,138.59,138.57,3.2]
[1764034323403,2.80681773,138.58,138.52,62.5]
[1764034323605,2.80681773,138.56,138.51,18.04864355]
[1764034323829,2.80681773,138.55,138.52,3.2]
[1764034324230,0.7,138.54,138.52,3.2]
[1764034324947,0.7,138.54,138.52,10.41913102]
[1764034325247,2.80681773,138.53,138.5,8.80994492]
[1764034325540,2.80681773,138.53,138.5,12.00994492]
[1764034325711,3.50681773,138.53,138.5,12.00994492]
[1764034326601,3.50681773,138.53,138.46,2.80681773]
[1764034326602,2.80681773,138.51,138.46,0.49]
[1764034326809,2.80681773,138.51,138.47,19.2314058]
[1764034327033,0.7,138.5,138.47,19.2314058]
[1764034327403,3.50681773,138.5,138.46,7.22214919]
[1764034327608,2.80681773,138.49,138.47,3.2]
[1764034327842,19.81568173,138.51,138.47,3.2]
[1764034328009,3.50681773,138.53,138.48,8.80994492]
[1764034328334,19.81568173,138.53,138.48,8.80994492]
[1764034328633,0.7,138.52,138.48,9.29994492]
[1764034328809,2.80681773,138.51,138.48,8.80994492]
[1764034329318,3.50681773,138.51,138.48,16.03117372]
[1764034332230,0.7,138.5,138.48,16.03117372]
[1764034332551,3.50681773,138.5,138.44,81.04781815]
[1764034332849,2.80681773,138.46,138.45,3.2]
[1764034333009,2.80681773,138.47,138.45,3.2]
[1764034333205,2.80681773,138.48,138.45,3.2]
[1764034333408,3.50681773,138.48,138.45,3.2]
[1764034333609,19.11568173,138.48,138.45,3.2]
[1764034333828,0.7,138.47,138.45,3.2]
[1764034335129,0.7,138.47,138.44,7.22300885]
[1764034335338,0.7,138.47,138.45,3.2]
[1764034336038,0.7,138.47,138.44,7.22300885]
[1764034336236,5.09040503,138.47,138.45,3.2]
[1764034336542,4.39040503,138.46,138.41,0.2]
[1764034336742,0.7,138.46,138.43,3.2]
[1764034336924,20.69926903,138.49,138.43,3.2]
[1764034337128,5.09040503,138.48,138.43,3.69]
[1764034337344,4.39040503,138.48,138.44,7.22334585]
[1764034337521,0.7,138.47,138.44,7.22334585]
[1764034342234,0.7,138.47,138.44,69.72334585]
[1764034345753,16.308864,138.49,138.44,69.72334585]
[1764034345952,0.7,138.48,138.44,70.21334585]
[1764034346746,5.09040503,138.48,138.44,70.21334585]
[1764034347953,4.39040503,138.48,138.44,70.21334585]
[1764034348258,0.7,138.47,138.44,70.21334585]
[1764034348633,0.7,138.47,138.45,3.2]
[1764034350863,0.7,138.47,138.45,10.42231463]
[1764034351965,4.39040503,138.48,138.45,10.42231463]
[1764034352153,5.09040503,138.48,138.45,10.42231463]
[1764034352768,4.39040503,138.48,138.45,10.42231463]
[1764034352952,0.7,138.47,138.45,10.42231463]
[1764034353154,4.39040503,138.51,138.46,9.29994492]
[1764034353362,0.7,138.55,138.5,8.80994492]
[1764034353544,0.7,138.54,138.51,3.2]
[1764034354650,4.39040503,138.53,138.51,3.2]
[1764034354972,5.09040503,138.54,138.51,10.41968857]
[1764034355381,0.7,138.53,138.51,10.41968857]
[1764034358648,0.7,138.53,138.51,3.2]
[1764034358846,5.09040503,138.53,138.51,3.2]
[1764034359153,0.7,138.53,138.51,3.2]
[1764034361348,0.7,138.53,138.51,10.41965024]
[1764034362467,0.7,138.53,138.51,3.2]
[1764034364879,0.7,138.53,138.51,10.41968951]
[1764034365992,0.7,138.53,138.51,3.2]
[1764034369287,5.09040503,138.53,138.51,3.2]
[1764034369805,0.7,138.52,138.51,3.2]
[1764034370892,0.7,138.52,138.5,69.72014805]
[1764034371071,0.7,138.52,138.51,3.2]
[1764034371388,0.7,138.53,138.51,3.2]
[1764034372885,0.7,138.53,138.51,10.41959021]
[1764034376070,0.7,138.53,138.51,3.2]
[1764034376696,0.7,138.53,138.51,10.41962965]